[Event "FIDE Chesscom Online Nations Cup"]
[White "Nakamura, Hikaru"]
[Black "Ding, Liren"]
[Site "Online"]
[Round "5"]
[Annotator "RC"]
[Result "1/2-1/2"]
[Date "2020.05.07"]
[WhiteElo "2829"]
[BlackElo "2836"]
[PlyCount "71"]
[TimeControl "1500+10"]

1. e4 {[%emt 0:0:4]} c5 {[%emt 0:0:6]} 2. c3 {[%emt 0:0:22]} Nf6 {[%emt 0:0:0]} 3. e5 {[%emt 0:0:2]} Nd5 {[%emt 0:0:1]} 4. Nf3 {[%emt 0:0:2]} Nc6 {[%emt 0:0:53]} 5. d4 {[%emt 0:0:30]} cxd4 {[%emt 0:0:6]} 6. cxd4 {[%emt 0:0:0]} d6 {[%emt 0:0:4]} 7. Bc4 {[%emt 0:0:23]} Nb6 {[%emt 0:0:4]} 8. Bb5 {[%emt 0:0:5]} dxe5 {[%emt 0:0:1]} 9. Nxe5 {[%emt 0:0:8]} Bd7 {[%emt 0:0:0]} 10. Nxd7 {[%emt 0:2:41]} Qxd7 {[%emt 0:0:4]} 11. Nc3 {[%emt 0:0:22]
} e6 {[%emt 0:0:2]} 12. 0-0 {[%emt 0:0:6]} Be7 {[%emt 0:0:21]} 13. Qg4 {[%emt 0:0:44]
} 0-0 {[%emt 0:3:4]} 14. Bh6 {[%emt 0:1:26]} Qxd4 {[%emt 0:0:0]} 15. Qg3 {[%emt 0:4:6]} Bd6 {[%emt 0:1:17]} 16. Bxg7 {[%emt 0:0:21]} Bxg3 {[%emt 0:0:6]} 17. Bxd4 {[%emt 0:0:2]} Bxh2+ {[%emt 0:0:3]} 18. Kxh2 {[%emt 0:0:0]} Nxd4 {[%emt 0:0:1]} 19. Bd3 {[%emt 0:0:9]} f5 {[%emt 0:0:0]} 20. Rae1 {[%emt 0:0:20]} Rf6 {[%emt 0:0:30]} 21. Re3 {[%emt 0:0:57]} Rh6+ {[%emt 0:0:5]} 22. Kg1 {[%emt 0:0:5]} Kf7 {[%emt 0:0:19]} 23. Ne2 {[%emt 0:0:33]
} Rd8 {[%emt 0:1:56]} 24. Rc1 {[%emt 0:0:3]} Nxe2+ {[%emt 0:0:0]} 25. Bxe2 {[%emt 0:0:0]} Rd2 {[%emt 0:0:43]} 26. Bf3 {[%emt 0:0:7]} Rxb2 {[%emt 0:0:17]} 27. Ra3 {[%emt 0:0:13]} a6 {[%emt 0:2:11]} 28. Bxb7 {[%emt 0:1:30]
} Nc4 {[%emt 0:0:4]} 29. Ra4 {[%emt 0:0:1]} Nd2 {[%emt 0:0:0]} 30. Ba8 {[%emt 0:1:8]} Ne4 {[%emt 0:1:36]} 31. Bxe4 {[%emt 0:0:4]} fxe4 {[%emt 0:0:1]} 32. Rxa6 {[%emt 0:0:33]} Rf6 {[%emt 0:0:37]} 33. Rf1 {[%emt 0:0:7]
} h5 {[%emt 0:0:37]} 34. Ra3 {[%emt 0:1:1]} Rf5 {[%emt 0:0:0]} 35. Re3 {[%emt 0:0:5]} Rxa2 {[%emt 0:0:1]} 36. Rxe4 {[%emt 0:0:2]} 1/2-1/2

[Event "FIDE Chesscom Online Nations Cup"]
[White "Dominguez Perez, Leinier"]
[Black "Yu, Yangyi"]
[Site "Online"]
[Round "5"]
[Annotator "RC"]
[Result "0-1"]
[Date "2020.05.07"]
[WhiteElo "2786"]
[BlackElo "2738"]
[PlyCount "74"]
[TimeControl "1500+10"]

1. e4 {[%emt 0:0:1]} e5 {[%emt 0:0:2]} 2. Nf3 {[%emt 0:0:2]} Nf6 {[%emt 0:0:2]
} 3. d4 {[%emt 0:0:1]} Nxe4 {[%emt 0:0:5]} 4. Bd3 {[%emt 0:0:0]} d5 {[%emt 0:0:2]} 5. Nxe5 {[%emt 0:0:1]} Bd6 {[%emt 0:0:6]} 6. Nc3 {[%emt 0:0:1]} Nxc3 {[%emt 0:0:17]} 7. bxc3 {[%emt 0:0:2]} 0-0 {[%emt 0:0:3]
} 8. 0-0 {[%emt 0:0:1]} Qh4 {[%emt 0:0:43]} 9. Re1 {[%emt 0:0:0]} Nc6 {[%emt 0:2:47]} 10. Rb1 {[%emt 0:5:57]} Nxe5 {[%emt 0:5:3]} 11. dxe5 {[%emt 0:0:4]} Bc5 {[%emt 0:0:1]} 12. Qf3 {[%emt 0:5:31]} b6 {[%emt 0:0:23]
} 13. Be3 {[%emt 0:1:46]} Be6 {[%emt 0:1:39]} 14. Bxc5 {[%emt 0:4:3]
} bxc5 {[%emt 0:0:2]} 15. Rb5 {[%emt 0:0:8]} c4 {[%emt 0:0:0]} 16. Bf1 {[%emt 0:1:53]} Rab8 {[%emt 0:1:53]} 17. Reb1 {[%emt 0:0:40]} Rb6 {[%emt 0:0:5]} 18. a4 {[%emt 0:1:21]} Rfb8 {[%emt 0:0:15]} 19. Qe3 {[%emt 0:0:39]
} Qe7 {[%emt 0:1:1]} 20. g3 {[%emt 0:1:43]} h6 {[%emt 0:1:38]
} 21. R1b4 {[%emt 0:0:4]} c5 {[%emt 0:1:40]} 22. Rxb6 {[%emt 0:2:46]} axb6 {[%emt 0:1:3]} 23. Rb1 {[%emt 0:0:13]} Qa7 {[%emt 0:0:8]} 24. Ra1 {[%emt 0:0:8]
} Rd8 {[%emt 0:0:20]} 25. Bg2 {[%emt 0:0:44]} d4 {[%emt 0:0:0]} 26. cxd4 {[%emt 0:0:2]} cxd4 {[%emt 0:0:0]} 27. Qd2 {[%emt 0:0:11]} Qc7 {[%emt 0:0:30]} 28. a5 {[%emt 0:0:16]} bxa5 {[%emt 0:0:53]} 29. Qxa5 {[%emt 0:0:7]
} Qxa5 {[%emt 0:0:40]} 30. Rxa5 {[%emt 0:0:0]} d3 {[%emt 0:0:0]} 31. cxd3 {[%emt 0:0:8]} cxd3 {[%emt 0:0:56]} 32. Bf3 {[%emt 0:0:7]} d2 {[%emt 0:1:6]} 33. Bd1 {[%emt 0:0:38]} Rb8 {[%emt 0:1:23]} 34. Ra1 {[%emt 0:0:33]
} Rc8 {[%emt 0:0:23]} 35. Kf1 {[%emt 0:0:6]} Bc4+ {[%emt 0:0:0]} 36. Kg1 {[%emt 0:0:14]} Bd5 {[%emt 0:0:52]} 37. Ra5 {[%emt 0:0:4]} Be4 {[%emt 0:0:2]} 0-1

[Event "FIDE Chesscom Online Nations Cup"]
[White "Aronian, Levon"]
[Black "Firouzja, Alireza"]
[Site "Online"]
[Round "5"]
[Annotator "RC"]
[Result "1-0"]
[Date "2020.05.07"]
[WhiteElo "2778"]
[BlackElo "2703"]
[PlyCount "175"]
[TimeControl "1500+10"]

1. Nf3 {[%emt 0:0:2]} d5 {[%emt 0:0:10]} 2. e3 {[%emt 0:0:3]} Nf6 {[%emt 0:0:6]
} 3. c4 {[%emt 0:0:2]} e6 {[%emt 0:0:37]} 4. b3 {[%emt 0:0:0]} c5 {[%emt 0:0:35]} 5. Bb2 {[%emt 0:0:8]} Nc6 {[%emt 0:0:5]} 6. cxd5 {[%emt 0:0:2]
} exd5 {[%emt 0:0:1]} 7. Bb5 {[%emt 0:0:9]} Bd6 {[%emt 0:0:0]} 8. d4 {[%emt 0:0:7]} cxd4 {[%emt 0:0:40]} 9. Nxd4 {[%emt 0:0:6]} 0-0 {[%emt 0:0:12]} 10. 0-0 {[%emt 0:1:10]} Nxd4 {[%emt 0:3:45]} 11. Qxd4 {[%emt 0:0:4]
} a6 {[%emt 0:0:4]} 12. Be2 {[%emt 0:2:46]} Re8 {[%emt 0:0:0]} 13. Qd1 {[%emt 0:0:14]} Qc7 {[%emt 0:2:51]} 14. h3 {[%emt 0:1:12]} Ne4 {[%emt 0:1:29]} 15. Nd2 {[%emt 0:2:6]} Nc3 {[%emt 0:0:31]} 16. Bxc3 {[%emt 0:0:2]
} Qxc3 {[%emt 0:0:1]} 17. Rc1 {[%emt 0:0:0]} Qf6 {[%emt 0:0:0]} 18. Bg4 {[%emt 0:0:10]} Bxg4 {[%emt 0:0:43]} 19. Qxg4 {[%emt 0:0:1]} Qb2 {[%emt 0:0:43]} 20. Nf3 {[%emt 0:0:9]} Qxa2 {[%emt 0:2:17]} 21. Qd7 {[%emt 0:0:5]
} Bf8 {[%emt 0:0:56]} 22. Qxb7 {[%emt 0:0:56]} Rab8 {[%emt 0:0:0]} 23. Qc6 {[%emt 0:0:11]} Qxb3 {[%emt 0:0:37]} 24. Qxa6 {[%emt 0:0:1]
} Qb6 {[%emt 0:0:11]} 25. Qa2 {[%emt 0:0:32]} Rbd8 {[%emt 0:0:52]} 26. Rfd1 {[%emt 0:0:4]} Qe6 {[%emt 0:0:34]} 27. Rc2 {[%emt 0:0:5]} Rd7 {[%emt 0:0:0]} 28. Qa4 {[%emt 0:0:58]} Red8 {[%emt 0:0:52]} 29. Nd4 {[%emt 0:1:52]} Qe4 {[%emt 0:0:6]} 30. Rdc1 {[%emt 0:0:12]} g6 {[%emt 0:2:18]} 31. Qb5 {[%emt 0:0:5]
} Rd6 {[%emt 0:0:37]} 32. Rc8 {[%emt 0:0:36]} Kg7 {[%emt 0:0:0]} 33. Qb2 {[%emt 0:3:4]} Rxc8 {[%emt 0:0:4]} 34. Rxc8 {[%emt 0:0:3]} Rf6 {[%emt 0:0:1]} 35. Rd8 {[%emt 0:2:17]} Bc5 {[%emt 0:0:28]} 36. Nf3 {[%emt 0:0:37]
} Be7 {[%emt 0:0:25]} 37. Rd7 {[%emt 0:1:30]} Qe6 {[%emt 0:0:0]} 38. Rb7 {[%emt 0:1:27]} Bd6 {[%emt 0:0:5]} 39. Ng5 {[%emt 0:0:54]} Qe5 {[%emt 0:0:8]} 40. Qxe5 {[%emt 0:0:2]} Bxe5 {[%emt 0:0:0]} 41. Rd7 {[%emt 0:0:4]
} h6 {[%emt 0:0:57]} 42. Nf3 {[%emt 0:0:49]} Bd6 {[%emt 0:0:0]} 43. Nd4 {[%emt 0:0:1]} Kf8 {[%emt 0:0:5]} 44. Nb5 {[%emt 0:0:3]} Bb4 {[%emt 0:0:24]} 45. Rxd5 {[%emt 0:0:39]} Be1 {[%emt 0:0:2]} 46. f3 {[%emt 0:0:20]
} Re6 {[%emt 0:0:30]} 47. Rd3 {[%emt 0:0:24]} Bg3 {[%emt 0:0:0]} 48. Kf1 {[%emt 0:0:6]} Rb6 {[%emt 0:0:11]} 49. Rd5 {[%emt 0:0:5]} Rc6 {[%emt 0:0:9]} 50. Ke2 {[%emt 0:0:4]} Rc1 {[%emt 0:0:6]} 51. Rd1 {[%emt 0:0:4]
} Rc2+ {[%emt 0:0:5]} 52. Rd2 {[%emt 0:0:2]} Rc1 {[%emt 0:0:0]} 53. Kd3 {[%emt 0:0:8]} Be5 {[%emt 0:0:19]} 54. Ke4 {[%emt 0:0:18]} Bf6 {[%emt 0:0:22]} 55. Nd4 {[%emt 0:0:9]} Bxd4 {[%emt 0:0:34]} 56. exd4 {[%emt 0:0:2]
} Ke7 {[%emt 0:0:5]} 57. Ra2 {[%emt 0:0:12]} h5 {[%emt 0:0:0]} 58. Kd5 {[%emt 0:0:37]} Rd1 {[%emt 0:0:18]} 59. Re2+ {[%emt 0:0:57]} Kd7 {[%emt 0:0:2]} 60. Ke5 {[%emt 0:0:6]} Ke7 {[%emt 0:0:1]} 61. f4 {[%emt 0:0:3]
} Rf1 {[%emt 0:0:21]} 62. h4 {[%emt 0:0:28]} f6+ {[%emt 0:0:0]} 63. Kd5+ {[%emt 0:0:18]} Kd7 {[%emt 0:0:25]} 64. g3 {[%emt 0:0:4]} Ra1 {[%emt 0:0:3]} 65. Rb2 {[%emt 0:0:16]} Ra5+ {[%emt 0:0:3]} 66. Kc4 {[%emt 0:0:2]
} Kc6 {[%emt 0:0:23]} 67. d5+ {[%emt 0:0:8]} Kc7 {[%emt 0:0:0]} 68. Re2 {[%emt 0:0:44]} Ra4+ {[%emt 0:0:4]} 69. Kb5 {[%emt 0:0:3]} Ra3 {[%emt 0:0:1]} 70. Re6 {[%emt 0:0:11]} Rxg3 {[%emt 0:0:14]} 71. Rxf6 {[%emt 0:0:1]
} Rg1 {[%emt 0:0:31]} 72. Ra6 {[%emt 0:1:32]} Kd7 {[%emt 0:0:0]} 73. Kc5 {[%emt 0:0:5]} Rc1+ {[%emt 0:0:13]} 74. Kd4 {[%emt 0:0:2]} Rd1+ {[%emt 0:0:8]} 75. Ke5 {[%emt 0:0:7]} Re1+ {[%emt 0:0:5]} 76. Kf6 {[%emt 0:0:2]
} Rg1 {[%emt 0:0:1]} 77. Ra7+ {[%emt 0:2:11]} Kd6 {[%emt 0:0:0]} 78. Rg7 {[%emt 0:0:0]} Rg4 {[%emt 0:0:13]} 79. Rxg6 {[%emt 0:0:1]} Rxf4+ {[%emt 0:0:23]} 80. Kg5+ {[%emt 0:0:4]} Ke5 {[%emt 0:0:1]} 81. d6 {[%emt 0:0:44]
} Rd4 {[%emt 0:0:2]} 82. Kxh5 {[%emt 0:0:29]} Kf5 {[%emt 0:0:0]} 83. Kh6 {[%emt 0:0:31]} Rxh4+ {[%emt 0:0:3]} 84. Kg7 {[%emt 0:0:1]} Ra4 {[%emt 0:0:21]} 85. Rh6 {[%emt 0:0:1]} Kg5 {[%emt 0:0:19]} 86. Re6 {[%emt 0:0:24]
} Kf5 {[%emt 0:0:21]} 87. Kf7 {[%emt 0:0:3]} Rh4 {[%emt 0:0:0]} 88. Re1 {[%emt 0:0:15]} 1-0

[Event "FIDE Chesscom Online Nations Cup"]
[White "Artemiev, Vladislav"]
[Black "Harikrishna, Pentala"]
[Site "Online"]
[Round "5"]
[Annotator "RC"]
[Result "1-0"]
[Date "2020.05.07"]
[WhiteElo "2769"]
[BlackElo "2690"]
[PlyCount "89"]
[TimeControl "1500+10"]

1. c4 {[%emt 0:0:4]} e6 {[%emt 0:0:4]} 2. Nf3 {[%emt 0:0:9]} d5 {[%emt 0:0:0]} 3. e3 {[%emt 0:0:2]} Nf6 {[%emt 0:0:2]} 4. d4 {[%emt 0:0:8]} c5 {[%emt 0:0:18]
} 5. cxd5 {[%emt 0:0:10]} exd5 {[%emt 0:0:6]} 6. Bb5+ {[%emt 0:0:5]
} Nc6 {[%emt 0:0:17]} 7. 0-0 {[%emt 0:0:2]} cxd4 {[%emt 0:0:0]} 8. exd4 {[%emt 0:0:17]} Be7 {[%emt 0:0:11]} 9. Ne5 {[%emt 0:0:12]} Bd7 {[%emt 0:0:2]} 10. Nc3 {[%emt 0:0:6]} 0-0 {[%emt 0:0:21]} 11. Bg5 {[%emt 0:0:5]
} h6 {[%emt 0:0:37]} 12. Bh4 {[%emt 0:0:5]} Ne4 {[%emt 0:0:0]} 13. Bxe7 {[%emt 0:0:31]} Qxe7 {[%emt 0:0:1]} 14. Nxd5 {[%emt 0:0:30]} Qd6 {[%emt 0:0:3]} 15. Nxd7 {[%emt 0:2:52]} Qxd7 {[%emt 0:0:3]} 16. Nb4 {[%emt 0:2:3]
} Qd6 {[%emt 0:0:38]} 17. Nxc6 {[%emt 0:0:31]} bxc6 {[%emt 0:0:0]} 18. Ba4 {[%emt 0:0:3]} Rab8 {[%emt 0:0:39]} 19. Qc2 {[%emt 0:0:4]} Ng5 {[%emt 0:2:32]} 20. Rad1 {[%emt 0:1:4]} Ne6 {[%emt 0:4:26]} 21. Qxc6 {[%emt 0:1:46]
} Qxc6 {[%emt 0:0:4]} 22. Bxc6 {[%emt 0:0:0]} Rxb2 {[%emt 0:0:0]} 23. a3 {[%emt 0:4:19]} Rb6 {[%emt 0:4:7]} 24. d5 {[%emt 0:0:24]} Nd8 {[%emt 0:0:3]} 25. Ba4 {[%emt 0:3:35]} Nb7 {[%emt 0:1:7]} 26. h4 {[%emt 0:2:31]
} Nd6 {[%emt 0:2:27]} 27. Rd4 {[%emt 0:0:14]} Rfb8 {[%emt 0:0:0]} 28. Bc6 {[%emt 0:0:17]} Ra6 {[%emt 0:0:26]} 29. Rd3 {[%emt 0:1:1]} Rab6 {[%emt 0:1:14]} 30. Re1 {[%emt 0:1:15]} Rb1 {[%emt 0:1:50]} 31. Rxb1 {[%emt 0:0:13]
} Rxb1+ {[%emt 0:0:3]} 32. Kh2 {[%emt 0:0:1]} Rb2 {[%emt 0:0:0]} 33. Kg3 {[%emt 0:0:39]} g5 {[%emt 0:1:0]} 34. hxg5 {[%emt 0:0:46]} hxg5 {[%emt 0:0:3]} 35. Kf3 {[%emt 0:0:4]} Kf8 {[%emt 0:1:36]} 36. g4 {[%emt 0:3:52]
} Ke7 {[%emt 0:0:14]} 37. Ke3 {[%emt 0:0:4]} f6 {[%emt 0:0:0]} 38. Kd4 {[%emt 0:0:18]} Nf7 {[%emt 0:0:23]} 39. Rh3 {[%emt 0:0:48]} Ne5 {[%emt 0:0:23]} 40. f3 {[%emt 0:0:13]} Rc2 {[%emt 0:0:59]} 41. Bb5 {[%emt 0:0:0]} a5 {[%emt 0:1:1]} 42. a4 {[%emt 0:0:6]} Kd6 {[%emt 0:0:5]} 43. Rh6 {[%emt 0:0:13]} Nxf3+ {[%emt 0:0:9]} 44. Kd3 {[%emt 0:0:2]} Nd2 {[%emt 0:0:2]
} 45. Kxc2 {[%emt 0:0:2]} 1-0

[Event "FIDE Chesscom Online Nations Cup"]
[White "Radjabov, Teimour"]
[Black "Vachier-Lagrave, Maxime"]
[Site "Online"]
[Round "5"]
[Annotator "RC"]
[Result "1/2-1/2"]
[Date "2020.05.07"]
[WhiteElo "2758"]
[BlackElo "2860"]
[PlyCount "77"]
[TimeControl "1500+10"]

1. d4 {[%emt 0:0:3]} d5 {[%emt 0:0:2]} 2. c4 {[%emt 0:0:2]} c6 {[%emt 0:0:0]} 3. Nc3 {[%emt 0:0:1]} Nf6 {[%emt 0:0:2]} 4. Nf3 {[%emt 0:0:2]} e6 {[%emt 0:0:2]} 5. Bg5 {[%emt 0:0:6]} h6 {[%emt 0:0:2]} 6. Bh4 {[%emt 0:0:0]} dxc4 {[%emt 0:0:3]} 7. e4 {[%emt 0:0:2]} g5 {[%emt 0:0:1]} 8. Bg3 {[%emt 0:0:2]} b5 {[%emt 0:0:2]} 9. Be2 {[%emt 0:0:2]} Nbd7 {[%emt 0:0:0]} 10. e5 {[%emt 0:0:23]} Nd5 {[%emt 0:1:10]} 11. 0-0 {[%emt 0:0:2]} Bb7 {[%emt 0:0:51]} 12. Nxd5 {[%emt 0:0:4]} cxd5 {[%emt 0:0:2]} 13. Ne1 {[%emt 0:0:2]
} Qb6 {[%emt 0:1:11]} 14. Bh5 {[%emt 0:2:15]} Be7 {[%emt 0:0:0]} 15. f4 {[%emt 0:0:56]} 0-0-0 {[%emt 0:3:7]} 16. fxg5 {[%emt 0:2:55]} Bxg5 {[%emt 0:0:53]} 17. Nc2 {[%emt 0:1:14]} f5 {[%emt 0:2:8]} 18. exf6 {[%emt 0:0:3]
} Nxf6 {[%emt 0:0:13]} 19. h4 {[%emt 0:3:41]} Ne4 {[%emt 0:0:0]} 20. Be5 {[%emt 0:3:40]} Bxh4 {[%emt 0:3:35]} 21. Qg4 {[%emt 0:0:5]} Bg5 {[%emt 0:0:34]} 22. Rf7 {[%emt 0:2:52]} Rhg8 {[%emt 0:0:40]} 23. Qh3 {[%emt 0:2:5]
} Rd7 {[%emt 0:0:17]} 24. Raf1 {[%emt 0:1:58]} Be7 {[%emt 0:0:0]} 25. Rh7 {[%emt 0:4:58]} Ng5 {[%emt 0:2:13]} 26. Qg4 {[%emt 0:0:2]} Bd6 {[%emt 0:1:29]} 27. Bf7 {[%emt 0:1:31]} Rgd8 {[%emt 0:3:44]} 28. Bxe6 {[%emt 0:0:19]
} Nxe6 {[%emt 0:0:1]} 29. Rxd7 {[%emt 0:0:11]} Kxd7 {[%emt 0:0:0]} 30. Rf7+ {[%emt 0:0:5]} Be7 {[%emt 0:0:2]} 31. Ne3 {[%emt 0:0:1]} Rf8 {[%emt 0:0:34]} 32. Rh7 {[%emt 0:0:2]} Qa5 {[%emt 0:1:15]} 33. Nf5 {[%emt 0:0:26]
} Qe1+ {[%emt 0:0:3]} 34. Kh2 {[%emt 0:0:2]} Rxf5 {[%emt 0:0:0]} 35. Qxf5 {[%emt 0:0:2]} Qh4+ {[%emt 0:0:1]} 36. Kg1 {[%emt 0:0:1]
} Qe1+ {[%emt 0:0:2]} 37. Kh2 {[%emt 0:0:1]} Qh4+ {[%emt 0:0:1]} 38. Kg1 {[%emt 0:0:1]} Qe1+ {[%emt 0:0:40]} 39. Kh2 {[%emt 0:0:1]} 1/2-1/2

[Event "FIDE Chesscom Online Nations Cup"]
[White "Anand, Viswanathan"]
[Black "Nepomniachtchi, Ian"]
[Site "Online"]
[Round "5"]
[Annotator "RC"]
[Result "1-0"]
[Date "2020.05.07"]
[WhiteElo "2751"]
[BlackElo "2778"]
[PlyCount "33"]
[TimeControl "1500+10"]

1. d4 {[%emt 0:0:5]} Nf6 {[%emt 0:0:4]} 2. c4 {[%emt 0:0:3]} g6 {[%emt 0:0:0]} 3. Nc3 {[%emt 0:0:2]} d5 {[%emt 0:0:1]} 4. cxd5 {[%emt 0:0:2]} Nxd5 {[%emt 0:0:0]} 5. Bd2 {[%emt 0:0:4]} Bg7 {[%emt 0:0:10]} 6. e4 {[%emt 0:0:4]
} Nxc3 {[%emt 0:0:4]} 7. Bxc3 {[%emt 0:0:4]} c5 {[%emt 0:0:0]} 8. d5 {[%emt 0:0:7]} Bxc3+ {[%emt 0:0:7]} 9. bxc3 {[%emt 0:0:6]} Qd6 {[%emt 0:0:14]} 10. Qd2 {[%emt 0:0:14]} 0-0 {[%emt 0:0:9]} 11. f4 {[%emt 0:0:0]} e6 {[%emt 0:0:2]} 12. Nf3 {[%emt 0:0:18]} exd5 {[%emt 0:0:9]} 13. Bc4 {[%emt 0:0:7]} Be6 {[%emt 0:1:7]} 14. 0-0 {[%emt 0:0:35]} d4 {[%emt 0:0:0]} 15. f5 {[%emt 0:1:12]} Bxc4 {[%emt 0:0:18]} 16. e5 {[%emt 0:0:11]} Qd7 {[%emt 0:0:30]} 17. f6 {[%emt 0:0:36]} 1-0

[Event "FIDE Chesscom Online Nations Cup"]
[White "Wang, Hao"]
[Black "Caruana, Fabiano"]
[Site "Online"]
[Round "5"]
[Annotator "RC"]
[Result "0-1"]
[Date "2020.05.07"]
[WhiteElo "2750"]
[BlackElo "2773"]
[PlyCount "92"]
[TimeControl "1500+10"]

1. Nf3 {[%emt 0:0:2]} d5 {[%emt 0:0:11]} 2. g3 {[%emt 0:0:3]} Bg4 {[%emt 0:0:9]
} 3. Bg2 {[%emt 0:0:3]} Nd7 {[%emt 0:0:1]} 4. 0-0 {[%emt 0:0:0]} e6 {[%emt 0:0:10]} 5. d3 {[%emt 0:0:8]} Bd6 {[%emt 0:0:14]} 6. Nbd2 {[%emt 0:0:12]} Ne7 {[%emt 0:0:4]} 7. h3 {[%emt 0:0:18]} Bh5 {[%emt 0:0:0]} 8. b3 {[%emt 0:0:12]} 0-0 {[%emt 0:0:11]} 9. Bb2 {[%emt 0:0:3]} a5 {[%emt 0:0:20]
} 10. a4 {[%emt 0:0:25]} c5 {[%emt 0:0:16]} 11. g4 {[%emt 0:0:0]} Bg6 {[%emt 0:0:11]} 12. Nh4 {[%emt 0:0:2]} Nc6 {[%emt 0:0:16]} 13. Nxg6 {[%emt 0:0:4]} hxg6 {[%emt 0:0:0]} 14. e4 {[%emt 0:1:47]} d4 {[%emt 0:1:11]
} 15. f4 {[%emt 0:0:4]} g5 {[%emt 0:0:1]} 16. f5 {[%emt 0:0:0]} Bf4 {[%emt 0:0:45]} 17. Nc4 {[%emt 0:0:13]} e5 {[%emt 0:1:5]} 18. Bc1 {[%emt 0:0:10]} Ra6 {[%emt 0:0:9]} 19. Qe2 {[%emt 0:0:14]} Qe7 {[%emt 0:0:0]} 20. Qf2 {[%emt 0:0:32]} Nb4 {[%emt 0:2:17]} 21. Bxf4 {[%emt 0:0:35]} gxf4 {[%emt 0:0:2]} 22. h4 {[%emt 0:0:28]} g5 {[%emt 0:0:4]} 23. fxg6 {[%emt 0:2:3]
} fxg6 {[%emt 0:0:54]} 24. g5 {[%emt 0:0:3]} Nb6 {[%emt 0:0:0]} 25. Bf3 {[%emt 0:0:16]} Nxc4 {[%emt 0:0:3]} 26. bxc4 {[%emt 0:0:3]} Rb6 {[%emt 0:0:25]} 27. Rfb1 {[%emt 0:1:11]} Kg7 {[%emt 0:0:6]} 28. Kg2 {[%emt 0:0:10]
} Rh8 {[%emt 0:0:39]} 29. Bg4 {[%emt 0:0:5]} Kf8 {[%emt 0:0:0]} 30. Rb3 {[%emt 0:0:35]} Ke8 {[%emt 0:0:15]} 31. Kf3 {[%emt 0:0:38]} Kd8 {[%emt 0:0:11]} 32. Rh1 {[%emt 0:2:51]} Qe8 {[%emt 0:0:7]} 33. Ra1 {[%emt 0:0:3]
} Kc7 {[%emt 0:0:6]} 34. Kg2 {[%emt 0:0:23]} Kb8 {[%emt 0:0:0]} 35. Kf3 {[%emt 0:0:3]} Rc6 {[%emt 0:2:9]} 36. Rbb1 {[%emt 0:1:19]} Rc7 {[%emt 0:0:10]} 37. Rh1 {[%emt 0:1:2]} Rch7 {[%emt 0:0:10]} 38. Rh2 {[%emt 0:0:30]
} Qc6 {[%emt 0:0:14]} 39. h5 {[%emt 0:5:28]} gxh5 {[%emt 0:0:0]} 40. Bf5 {[%emt 0:0:6]} Rg7 {[%emt 0:0:1]} 41. g6 {[%emt 0:0:3]} Rf8 {[%emt 0:2:27]} 42. Rxh5 {[%emt 0:1:48]} Rxf5 {[%emt 0:0:3]} 43. Rxf5 {[%emt 0:0:3]
} Qxg6 {[%emt 0:0:1]} 44. Qh2 {[%emt 0:0:1]} Nxc2 {[%emt 0:0:0]} 45. Rh1 {[%emt 0:0:14]} Qg4+ {[%emt 0:0:38]} 46. Kf2 {[%emt 0:0:3]} Nb4 {[%emt 0:0:3]} 0-1

[Event "FIDE Chesscom Online Nations Cup"]
[White "Adhiban, B.."]
[Black "Karjakin, Sergey"]
[Site "Online"]
[Round "5"]
[Annotator "ChessBase"]
[Result "1/2-1/2"]
[Date "2020.05.07"]
[WhiteElo "2624"]
[BlackElo "2709"]
[PlyCount "41"]
[TimeControl "1500+10"]

1. d4 {[%emt 0:0:6]} Nf6 {[%emt 0:0:8]} 2. c4 {[%emt 0:0:2]} e6 {[%emt 0:0:0]} 3. Nf3 {[%emt 0:0:1]} d5 {[%emt 0:0:2]} 4. Nc3 {[%emt 0:0:2]} Be7 {[%emt 0:0:4]} 5. Bf4 {[%emt 0:0:2]} 0-0 {[%emt 0:0:2]} 6. e3 {[%emt 0:0:0]} Nbd7 {[%emt 0:0:9]} 7. Be2 {[%emt 0:0:3]} dxc4 {[%emt 0:0:23]} 8. 0-0 {[%emt 0:0:5]} a6 {[%emt 0:0:52]} 9. a4 {[%emt 0:0:3]} c5 {[%emt 0:0:0]} 10. d5 {[%emt 0:1:8]} exd5 {[%emt 0:0:7]} 11. Nxd5 {[%emt 0:0:2]} Nxd5 {[%emt 0:0:0]} 12. Qxd5 {[%emt 0:0:2]} Nf6 {[%emt 0:1:57]} 13. Qxc4 {[%emt 0:0:7]
} Be6 {[%emt 0:0:43]} 14. Qc2 {[%emt 0:0:6]} h6 {[%emt 0:0:0]} 15. Rfd1 {[%emt 0:5:43]} Qb6 {[%emt 0:0:53]} 16. Nd2 {[%emt 0:2:15]} Rad8 {[%emt 0:1:16]} 17. Nc4 {[%emt 0:2:16]} Qc6 {[%emt 0:1:18]} 18. Ne5 {[%emt 0:2:2]
} Qb6 {[%emt 0:0:35]} 19. Nc4 {[%emt 0:0:3]} Qc6 {[%emt 0:0:0]} 20. Ne5 {[%emt 0:0:2]} Qb6 {[%emt 0:0:21]} 21. Nc4 {[%emt 0:0:2]} 1/2-1/2

[Event "FIDE Chesscom Online Nations Cup"]
[White "Hou, Yifan"]
[Black "Krush, Irina"]
[Site "Online"]
[Round "5"]
[Annotator "ChessBase"]
[Result "1-0"]
[Date "2020.05.07"]
[WhiteElo "2621"]
[BlackElo "2392"]
[PlyCount "71"]
[TimeControl "1500+10"]

1. e4 {[%emt 0:0:1]} c5 {[%emt 0:0:4]} 2. Nf3 {[%emt 0:0:2]} d6 {[%emt 0:0:0]} 3. Bb5+ {[%emt 0:0:2]} Bd7 {[%emt 0:0:3]} 4. c4 {[%emt 0:0:10]} Bxb5 {[%emt 0:0:11]} 5. cxb5 {[%emt 0:0:2]} Nf6 {[%emt 0:0:11]} 6. Nc3 {[%emt 0:0:2]
} g6 {[%emt 0:0:2]} 7. d4 {[%emt 0:0:49]} cxd4 {[%emt 0:0:4]
} 8. Nxd4 {[%emt 0:0:5]} Bg7 {[%emt 0:0:6]} 9. 0-0 {[%emt 0:0:3]} 0-0 {[%emt 0:0:10]
} 10. Be3 {[%emt 0:1:18]} Nbd7 {[%emt 0:0:27]} 11. Qe2 {[%emt 0:1:39]
} Rc8 {[%emt 0:0:39]} 12. Rfd1 {[%emt 0:1:6]} Re8 {[%emt 0:0:0]} 13. Rac1 {[%emt 0:1:53]} e6 {[%emt 0:0:4]} 14. Nb3 {[%emt 0:1:26]} Nb6 {[%emt 0:0:56]} 15. Na5 {[%emt 0:2:57]} d5 {[%emt 0:3:47]} 16. e5 {[%emt 0:0:0]} Nfd7 {[%emt 0:2:52]} 17. Nxb7 {[%emt 0:0:4]} Qh4 {[%emt 0:0:21]} 18. Nd6 {[%emt 0:5:7]} Bxe5 {[%emt 0:2:25]} 19. g3 {[%emt 0:0:3]} Qf6 {[%emt 0:1:55]
} 20. Nxc8 {[%emt 0:0:21]} Rxc8 {[%emt 0:0:25]} 21. f4 {[%emt 0:2:38]
} Bb8 {[%emt 0:2:16]} 22. Bxb6 {[%emt 0:0:42]} Nxb6 {[%emt 0:0:0]} 23. Nxd5 {[%emt 0:0:20]} exd5 {[%emt 0:1:4]} 24. Rxc8+ {[%emt 0:0:0]} Nxc8 {[%emt 0:0:1]} 25. Qe8+ {[%emt 0:0:0]} Kg7 {[%emt 0:0:1]} 26. Qxc8 {[%emt 0:0:1]} Qb6+ {[%emt 0:0:27]} 27. Kg2 {[%emt 0:0:5]} Qxb5 {[%emt 0:0:24]
} 28. Qc3+ {[%emt 0:0:6]} Kg8 {[%emt 0:0:39]} 29. Rd2 {[%emt 0:0:27]
} Bd6 {[%emt 0:6:6]} 30. Qb3 {[%emt 0:0:53]} Qa6 {[%emt 0:0:0]} 31. Qxd5 {[%emt 0:0:5]} Be7 {[%emt 0:0:3]} 32. f5 {[%emt 0:1:25]} Bf6 {[%emt 0:0:14]} 33. fxg6 {[%emt 0:0:10]} hxg6 {[%emt 0:0:3]} 34. Rf2 {[%emt 0:0:8]
} Kg7 {[%emt 0:0:7]} 35. Qf3 {[%emt 0:0:35]} Qe6 {[%emt 0:0:0]} 36. Qxf6+ {[%emt 0:0:13]} 1-0